Workbook

Sheet Sheet1
A1: “汇融菜窖”各支行额度分配明细表
A2: 序号 | B2: 支行 | C2: 蔬菜品类 | D2: ①白菜 | E2: ②土豆 | F2: ③大葱 | G2: ④沙窝萝卜 | H2: ⑤包尖白菜 | I2: ⑥红薯粉条 | J2: ⑦红薯 | K2: ⑧泥坑藕 | L2: 单数合计
C3: 购买占比 | D3: 25% | E3: 25% | F3: 5% | G3: 7.5% | H3: 7.5% | I3: 7.5% | J3: 15% | K3: 7.5% | L3: 100%
C4: 入库价（元/斤） | D4: 0.20 | E4: 0.85 | F4: 0.32 | G4: 1.00 | H4: 1.30 | I4: 7.50 | J4: 1.20 | K4: 3.00
C5: 仓储费（元/斤） | D5: 0.15 | E5: 0.15 | F5: 0.25 | G5: 0.15 | H5: 0.15 | I5: 0.00 | J5: 0.15 | K5: 0.00
C6: 损耗 | D6: 25.00% | E6: 5.00% | F6: 25.00% | G6: 5.00% | H6: 25.00% | I6: 0.00% | J6: 5.00% | K6: 0.00%
C7: 每份斤数（斤） | D7: 12.00 | E7: 4.79 | F7: 7.39 | G7: 8.32 | H7: 15.93 | I7: 2.00 | J7: 7.00 | K7: 5.00
C8: 出库价（元） | D8: 0.42 | E8: 1.04 | F8: 0.68 | G8: 1.20 | H8: 1.88 | I8: 7.50 | J8: 1.43 | K8: 3.00
C9: 每份价值（元） | D9: 5.00 | E9: 5.00 | F9: 5.00 | G9: 10.00 | H9: 30.00 | I9: 15.00 | J9: 10.00 | K9: 15.00
A10: 1 | B10: 营业部 | C10: 76260 | D10: =76260*D3/D9 -> 3813 | E10: 3813 | F10: 763 | G10: 572 | H10: 191 | I10: 381 | J10: 1144 | K10: 381 | L10: =SUM(D10:K10) -> 11058
A11: 2 | B11: 振头支行 | C11: 142560 | D11: =142560*D3/D9 -> 7128 | E11: 7128 | F11: 1426 | G11: 1069 | H11: 356 | I11: 713 | J11: 2138 | K11: 713 | L11: =SUM(D11:K11) -> 20671
A12: 3 | B12: 联盟路支行 | C12: 114820 | D12: =114820*D3/D9 -> 5741 | E12: 5741 | F12: 1148 | G12: 861 | H12: 287 | I12: 574 | J12: 1722 | K12: 574 | L12: 16649
A13: 4 | B13: 留营支行 | C13: 155400 | D13: =155400*D3/D9 -> 7770 | E13: 7770 | F13: 1554 | G13: 1166 | H13: 389 | I13: 777 | J13: 2331 | K13: 777 | L13: 22533
A14: 5 | B14: 于底支行 | C14: 174880 | D14: =174880*D3/D9 -> 8744 | E14: 8744 | F14: 1749 | G14: 1312 | H14: 437 | I14: 874 | J14: 2623 | K14: 874 | L14: 25358
A15: 6 | B15: 西三庄支行 | C15: 153980 | D15: =153980*D3/D9 -> 7699 | E15: 7699 | F15: 1540 | G15: 1155 | H15: 385 | I15: 770 | J15: 2310 | K15: 770 | L15: 22327
A16: 7 | B16: 杜北支行 | C16: 125900 | D16: =125900*D3/D9 -> 6295 | E16: 6295 | F16: 1259 | G16: 944 | H16: 315 | I16: 630 | J16: 1889 | K16: 630 | L16: 18256
A17: 8 | B17: 中华大街支行 | C17: 174460 | D17: =174460*D3/D9 -> 8723 | E17: 8723 | F17: 1745 | G17: 1308 | H17: 436 | I17: 872 | J17: 2617 | K17: 872 | L17: 25297
A18: 9 | B18: 桃园支行 | C18: 158820 | D18: =158820*D3/D9 -> 7941 | E18: 7941 | F18: 1588 | G18: 1191 | H18: 397 | I18: 794 | J18: 2382 | K18: 794 | L18: 23029
A19: 10 | B19: 跃进路支行 | C19: 131720 | D19: =131720*D3/D9 -> 6586 | E19: 6586 | F19: 1317 | G19: 988 | H19: 329 | I19: 659 | J19: 1976 | K19: 659 | L19: 19099
A20: 11 | B20: 建华大街支行 | C20: 76840 | D20: =76840*D3/D9 -> 3842 | E20: 3842 | F20: 768 | G20: 576 | H20: 192 | I20: 384 | J20: 1153 | K20: 384 | L20: 11142
A21: 12 | B21: 孙村支行 | C21: 138580 | D21: =138580*D3/D9 -> 6929 | E21: 6929 | F21: 1386 | G21: 1039 | H21: 346 | I21: 693 | J21: 2079 | K21: 693 | L21: 20094
A22: 13 | B22: 谈固北大街支行 | C22: 94860 | D22: =94860*D3/D9 -> 4743 | E22: 4743 | F22: 949 | G22: 711 | H22: 237 | I22: 474 | J22: 1423 | K22: 474 | L22: 13755
A23: 14 | B23: 维明街支行 | C23: 88820 | D23: =88820*D3/D9 -> 4441 | E23: 4441 | F23: 888 | G23: 666 | H23: 222 | I23: 444 | J23: 1332 | K23: 444 | L23: 12879
A24: 15 | B24: 槐安东路分理处 | C24: 43880 | D24: =43880*D3/D9 -> 2194 | E24: 2194 | F24: 439 | G24: 329 | H24: 110 | I24: 219 | J24: 658 | K24: 219 | L24: 6363
A25: 16 | B25: 金马分理处 | C25: 34520 | D25: =34520*D3/D9 -> 1726 | E25: 1726 | F25: 345 | G25: 259 | H25: 86 | I25: 173 | J25: 518 | K25: 173 | L25: 5005
A26: 17 | B26: 广安大街分理处 | C26: 36260 | D26: =36260*D3/D9 -> 1813 | E26: 1813 | F26: 363 | G26: 272 | H26: 91 | I26: 181 | J26: 544 | K26: 181 | L26: 5258
A27: 18 | B27: 裕西分理处 | C27: 77440 | D27: =77440*D3/D9 -> 3872 | E27: 3872 | F27: 774 | G27: 581 | H27: 194 | I27: 387 | J27: 1162 | K27: 387 | L27: 11229
A28: 单数总计 | D28: =SUM(D10:D27) -> 100000 | E28: 100000 | F28: 20000 | G28: 15000 | H28: 5000 | I28: 10000 | J28: 30000 | K28: 10000 | L28: 290000单
A29: 斤数合计 | D29: 1600000斤 | E29: 503778斤 | F29: 197044斤 | G29: 131291斤 | H29: 106195斤 | I29: 20000斤 | J29: 223464斤 | K29: 50000斤
A30: 吨数合计 | D30: 800吨 | E30: 251.89吨 | F30: 98.52吨 | G30: 65.65吨 | H30: 53吨 | I30: 10吨 | J30: 111.73吨 | K30: 25吨
A31: 分配金额 | D31: =2000000*D3 -> 500000 | E31: =2000000*E3 -> 500000 | F31: 100000 | G31: 150000 | H31: 150000 | I31: 150000 | J31: 300000 | K31: 150000
